Cogmind - Beta 13 @@@ ROGUE MODE // 2024.04.19 @ 15:22:57 Player: DeathByZer0 Result: Destroyed by Y-45 Defender with Beam Rifle Performance ------------- Evolutions (2) 1000 Regions Visited (4) 800 Robots Destroyed (55) 275 Value Destroyed (1528) 1528 Prototype IDs (1) 20 Alien Tech Used (0) 0 Bonus (135) 135 TOTAL SCORE: 3758 Bonus ------- High Alert Combat Kills 135 Cogmind --------- Core Integrity 0/550 Matter 108/300 Energy 100/100 System Corruption 0% Temperature Cool (18) Movement Core (50) Location -8/Storage Parts ------- > --- POWER (1) -------- (None) > --- PROPULSION (4) --- (None) > --- UTILITY (4) ------ Utility Shielding > --- WEAPON (2) ------- (None) > --- INVENTORY (5) ---- Advanced Weight Redist. System Ion Cannon Peak State ------------ > --- POWER ------------ Improved Ion Engine > --- PROPULSION ------- Light Treads Armored Treads Armored Treads Armored Treads > --- UTILITY ---------- Large Storage Unit Actuator Array Improved Utility Shielding Hardened Medium Armor Plating > --- WEAPON ----------- Ion Cannon Scythe > --- INVENTORY -------- Light Ion Engine Improved Ion Engine Light Treads Armored Treads Heat Sink Advanced Weight Redist. System Hardened Medium Armor Plating Hardened Medium Armor Plating EM Pulse Gun Ion Cannon Datajack [Rating: 30] Favorites ----------- Power Improved Ion Engine Engine Improved Ion Engine Propulsion Armored Treads Treads Armored Treads Leg Aluminum Leg Wheel Compact Wheel Hover Unit Airjet Flight Unit Flight Unit Utility Large Storage Unit Device Actuator Array Storage Large Storage Unit Protection Utility Shielding Weapon Assault Cannon Energy Gun EM Pulse Gun Energy Cannon Ion Cannon Ballistic Cannon Assault Cannon Impact Weapon Hammer Slashing Weapon Scythe Special Melee Weapon Improved Datajack Build | -11 -10 -9 -8 -8 ------- Run | Yrd Mat Mat Mat Sto Slots Evolved 4 | . . 2 2 . Power . | . . . . . Propulsion 2 | . . 2 . . Utility 2 | . . . 2 . Weapon . | . . . . . Parts Attached 66 | 6 5 23 30 2 Power 5 | 1 . 2 2 . Engine 5 | 1 . 2 2 . Core . | . . . . . Reactor . | . . . . . Propulsion 15 | 2 . 7 5 1 Treads 7 | . . 5 2 . Leg 2 | . . 2 . . Wheel 2 | 2 . . . . Hover 3 | . . . 2 1 Flight 1 | . . . 1 . Utility 18 | 1 2 5 9 1 Device 5 | . 1 1 3 . Storage 2 | 1 . 1 . . Processor . | . . . . . Hackware . | . . . . . Protection 11 | . 1 3 6 1 Artifact . | . . . . . Weapon 28 | 2 3 9 14 . Energy Gun 9 | 2 3 1 3 . Energy Cannon 4 | . . . 4 . Ballistic Gun . | . . . . . Ballistic Cannon 6 | . . 6 . . Launcher . | . . . . . Special Weapon . | . . . . . Impact Weapon 1 | . . . 1 . Slashing Weapon 3 | . . . 3 . Piercing Weapon . | . . . . . Special Melee Weapon 5 | . . 2 3 . Unidentified Prototypes 1 | . . 1 . . Parts Lost 26 | . 2 3 18 3 Power 4 | . . 1 3 . Propulsion 12 | . 2 . 7 3 Utility 5 | . . 1 4 . Weapon 5 | . . 1 4 . Highest Loss Streak 12 | . 2 1 12 3 To Critical Strikes . | . . . . . Average Slot Usage (%) 84 | . 70 93 80 23 Engine 7 | . 14 5 7 . Treads 32 | . . 43 27 . Wheel 1 | . 12 . . . Device 1 | . . 1 5 . Storage 10 | . 14 11 7 . Protection 9 | . 2 9 15 9 Energy Gun 4 | . 27 . 1 . Ballistic Cannon 13 | . . 21 4 . Naked Turns 4 | . . . 4 . Heaviest Build 50 | 11 12 44 50 4 Greatest Support 80 | 26 26 80 80 8 Greatest Overweight (x) 15 | . 3 3 15 1 Average Overweight (x) . | . 1 . . . Largest Inventory Capacity 15 | 8 8 15 15 5 Average Capacity 12 | 6 8 14 13 5 Most Carried 13 | 4 8 13 12 5 Average Carried 9 | 2 6 10 9 4 Final Capacity 15 | 8 8 15 5 5 Final Carried 12 | 4 7 12 5 2 Class Distribution -------------------- 97% | Mutant Dominant Class ---------------- Mutant | -10/Materials Mutant | -9/Materials Mutant | -8/Materials Mutant | -8/Storage Resources | -11 -10 -9 -8 -8 ----------- Run | Yrd Mat Mat Mat Sto Matter Collected 1355 | 240 57 1000 58 . Remotely . | . . . . . Salvage Created 1623 | . 254 1069 300 . Parts 99 | . 15 66 18 . Haulers Intercepted 1 | . . 1 . . Recyclers Shooed 2 | . 1 . . 1 Parts Field Recycled . | . . . . . Retrieved Matter . | . . . . . Parts Self-Destructed . | . . . . . Prevented . | . . . . . Kills | -11 -10 -9 -8 -8 ------- Run | Yrd Mat Mat Mat Sto Combat Hostiles Destroyed 40 | . 8 26 6 . Melee 2 | . . . 2 . Guns 9 | . 7 . 2 . Cannons 25 | . . 23 2 . AOE 4 | . 1 3 . . Classes Destroyed 9 | . 3 6 . . Worker 3 | . . 2 1 . Builder 1 | . . 1 . . Hauler 1 | . . 1 . . Recycler 4 | . . 4 . . Watcher 6 | . 1 4 1 . Swarmer 8 | . 3 5 . . Grunt 23 | . 5 13 5 . Brawler 1 | . . 1 . . Sentry 8 | . . 7 1 . Best Kill Streak 9 | . 7 9 6 . Combat Bots Only 8 | . 6 8 5 . Max Kills in Single Turn 5 | . 1 5 1 . Gunslinging . | . . . . . Exploded 3 | . 1 3 . . Melee 1 | . . . 1 . Uniques/NPCs Destroyed . | . . . . . Combat | -11 -10 -9 -8 -8 -------- Run | Yrd Mat Mat Mat Sto Hostile Shots Fired 447 | . 28 217 187 15 Missed 102 | . 7 58 33 4 Damage Taken 4764 | . 218 1901 2427 218 Core 912 | . 98 262 444 108 Absorbed by Shields . | . . . . . Redirected to Shielding 102 | . . 5 97 . Core Remaining (%) 64 | 100 60 34 . . Volleys Fired 128 | . 21 79 28 . Largest 2 | . 2 2 2 . Hottest 125 | . 80 88 125 . Shots Fired 231 | . 41 157 33 . Gun 56 | . 41 . 15 . Cannon 175 | . . 157 18 . Launcher . | . . . . . Special . | . . . . . Kinetic 161 | . . 157 4 . Thermal 45 | . 20 . 25 . Explosive . | . . . . . Electromagnetic 25 | . 21 . 4 . Robot Hit Streak 10 | . 6 10 7 . Robot Miss Streak 7 | . 2 7 5 . Penetration Max . | . . . . . Secondary Targets 3 | . 3 . . . Max Gunslinging Chain 1 | . 1 . . . Shots Hit Robots 129 | . 27 79 23 . Core Hits 69 | . 14 40 14 1 Critical Kills . | . . . . . Critical Parts Destroyed . | . . . . . Critical Strikes 6 | . . 6 . . Blast 6 | . . 6 . . Melee Attacks 6 | . . 2 4 . Impact . | . . . . . Slashing 3 | . . . 3 . Piercing . | . . . . . Sneak Attacks 2 | . . 2 . . Combat Hostiles . | . . . . . Follow-up Attacks . | . . . . . Damage Inflicted 3546 | . 535 2432 570 9 Guns 547 | . 367 . 180 . Cannons 2195 | . . 1971 224 . Explosions 657 | . 162 461 34 . Melee 95 | . . . 95 . Ramming 52 | . 6 . 37 9 Kinetic 2047 | . . 1971 76 . Thermal 584 | . 313 . 271 . Explosive 461 | . . 461 . . Electromagnetic 307 | . 216 . 91 . Impact . | . . . . . Slashing 95 | . . . 95 . Piercing . | . . . . . Highest Corruption . | . . . . . Average Corruption . | . . . . . Corruption Purged . | . . . . . Corruption Blocked . | . . . . . Overload Shots . | . . . . . Overflow Damage 101 | . 22 79 . . Projectiles 7 | . . 7 . . Explosions 94 | . 22 72 . . Melee . | . . . . . Knockbacks 12 | . . 12 . . Impact . | . . . . . Kinetic 12 | . . 12 . . Secondary . | . . . . . Self-Inflicted Damage 116 | . 3 95 15 3 Shots 1 | . . 1 . . Rammed 13 | . 1 . 9 3 Targets Rammed 13 | . 1 . 9 3 Kicked . | . . . . . Crushed . | . . . . . Highest Temperature 462 | . 236 384 462 . Average Temperature 130 | . 105 93 237 . Received Heat Transfer 2241 | . 72 585 1503 81 Effects 9 | . . 2 7 . Shutdowns 3 | . . . 3 . Energy Bleed 1 | . . . 1 . Interference 1 | . . . 1 . Matter Decay 2 | . . . 2 . Short Circuit 1 | . . 1 . . Damage (minor) 1 | . . 1 . . Siege Activations . | . . . . . Robots Corrupted . | . . . . . Combat Hostiles . | . . . . . Parts Fried . | . . . . . Impact Corruptions . | . . . . . Robots Melted . | . . . . . Combat Hostiles . | . . . . . Parts Melted . | . . . . . Heat Transferred 1118 | . 550 . 568 . Parts Sabotaged . | . . . . . Parts Stolen . | . . . . . Parts Stripped . | . . . . . Power Chain Reactions 3 | . 2 . 1 . Alert | -11 -10 -9 -8 -8 ------- Run | Yrd Mat Mat Mat Sto Peak Influence 692 | . 273 692 416 114 Initial 291 | . . 115 291 89 Average 389 | . 162 499 310 84 Maximum Alert Level 2 | . 1 2 2 . Low Security (%) 17 | 100 43 8 1 100 Level 1 32 | . 56 9 96 . Level 2 49 | . . 81 1 . Level 3 . | . . . . . Level 4 . | . . . . . Level 5 . | . . . . . High Security . | . . . . . Max Security . | . . . . . Squads Dispatched 8 | . 3 2 3 . Investigation 4 | . 1 . 3 . Extermination . | . . . . . Reinforcement 3 | . 2 1 . . Assault 1 | . . 1 . . Garrison . | . . . . . Intercept . | . . . . . Searches Triggered . | . . . . . Construction Impeded . | . . . . . Haulers Reinforced . | . . . . . Active Scanning Responses . | . . . . . Cargo Convoy Interrupts . | . . . . . Stealth | -11 -10 -9 -8 -8 --------- Run | Yrd Mat Mat Mat Sto Distress Signals 5 | . 2 3 . . Communications Jammed . | . . . . . Distress Signals . | . . . . . Times Spotted 83 | . 12 42 20 9 Peak Tracking Total 10 | . 4 10 6 7 Tactical Retreats 10 | . 1 5 3 1 Traps | -11 -10 -9 -8 -8 ------- Run | Yrd Mat Mat Mat Sto Traps Triggered 2 | . 1 . . 1 Indirectly . | . . . . . Trap Hack Attempts . | . . . . . Triggered . | . . . . . Disarmed . | . . . . . Reprogrammed . | . . . . . Reused . | . . . . . Traps Extracted . | . . . . . Installed . | . . . . . Triggered . | . . . . . Machines | -11 -10 -9 -8 -8 ---------- Run | Yrd Mat Mat Mat Sto Machines Disabled 4 | . . 4 . . Max in Single Turn 2 | . . 2 . . Machines Repaired . | . . . . . Machines Dismantled . | . . . . . Machines Sabotaged . | . . . . . Overloaded Fab Kills . | . . . . . Hacking | -11 -10 -9 -8 -8 --------- Run | Yrd Mat Mat Mat Sto Machines Accessed 14 | . 2 7 4 1 Terminals 12 | . 2 6 3 1 Fabricators . | . . . . . Repair Stations . | . . . . . Recycling Units 1 | . . 1 . . Scanalyzers 1 | . . . 1 . Garrison Access . | . . . . . Total Hacks 40 | . 5 16 17 2 Successful 23 | . 2 13 8 . Failed 17 | . 3 3 9 2 Catastrophic 2 | . . . 2 . Database Lockouts . | . . . . . Manual . | . . . . . Terminals 35 | . 5 15 13 2 Fabricators . | . . . . . Repair Stations . | . . . . . Recycling Units 1 | . . 1 . . Scanalyzers 4 | . . . 4 . Garrison Access . | . . . . . Terminal Hacks 19 | . 2 12 5 . Record 1 | . . . 1 . Emergency Access Points 1 | . . 1 . . Alert Level 2 | . . 1 1 . Locate Traps 4 | . 1 3 . . Dispatch Records 3 | . 1 1 1 . Surveillance Status 1 | . . 1 . . Patrol Status 1 | . . . 1 . Investigation Status 1 | . . 1 . . Reinforcement Status 2 | . . 2 . . Zone Layout 3 | . . 2 1 . Fabricator Hacks . | . . . . . Repair Station Hacks . | . . . . . Recycling Unit Hacks 1 | . . 1 . . Report Inventory 1 | . . 1 . . Scanalyzer 3 | . . . 3 . Insert Component 2 | . . . 2 . Analyze 1 | . . . 1 . Garrison Access Hacks . | . . . . . Unauthorized Hacks . | . . . . . Terminals . | . . . . . Fabricators . | . . . . . Repair Stations . | . . . . . Recycling Units . | . . . . . Scanalyzers . | . . . . . Garrison Access . | . . . . . Data Cores Recovered . | . . . . . Used . | . . . . . Hacking Detections 11 | . 2 4 4 1 Full Trace Events 3 | . . . 3 . Feedback Events . | . . . . . Feedback Blocked . | . . . . . Robot Schematics Acquired . | . . . . . Robots Built . | . . . . . Authchips . | . . . . . Time . | . . . . . Total Robot Build Rating . | . . . . . Part Schematics Acquired 1 | . . . 1 . Parts Built . | . . . . . Authchips . | . . . . . Time . | . . . . . Total Part Build Rating . | . . . . . Parts Repaired . | . . . . . Time . | . . . . . Parts Recycled . | . . . . . Recycled Matter . | . . . . . Retrieved Matter . | . . . . . Retrieved Components . | . . . . . Parts Scanalyzed 2 | . . . 2 . Part Schematics Acquired 1 | . . . 1 . Parts Damaged 1 | . . . 1 . Bothacking | -11 -10 -9 -8 -8 ------------ Run | Yrd Mat Mat Mat Sto Used RIF Installer . | . . . . . Robots Hacked 1 | . . 1 . . Non-combat 1 | . . 1 . . Combat . | . . . . . Robot Hacks Applied 1 | . . 1 . . no_distress 1 | . . 1 . . Relay Couplers Released . | . . . . . Fabnet Peak Effective % . | . . . . . Robots Rewired . | . . . . . Allies Hacked . | . . . . . Hacks Repelled . | . . . . . Allies | -11 -10 -9 -8 -8 -------- Run | Yrd Mat Mat Mat Sto Total Allies 1 | . . . . 1 Largest Group 1 | . . . . 1 Highest-Rated Group 100 | . . . . 100 Highest-Rated Ally 100 | . . . . 100 Total Orders . | . . . . . Ally Attacks 4 | . . . . 4 Total Damage 37 | . . . . 37 Kills . | . . . . . Allies Corrupted . | . . . . . Allies Melted . | . . . . . Intel | -11 -10 -9 -8 -8 ------- Run | Yrd Mat Mat Mat Sto Robot Analysis Total . | . . . . . Derelict Logs Recovered . | . . . . . Drone Launches . | . . . . . Drone Recoveries . | . . . . . Exploration | -11 -10 -9 -8 -8 ------------- Run | Yrd Mat Mat Mat Sto Turns Passed 2640 | 63 355 1597 528 97 Spaces Moved 1431 | 57 204 766 260 144 Core 116 | 10 89 3 11 3 Treads 949 | . . 759 190 . Legs 4 | . . 4 . . Wheels 162 | 47 115 . . . Hover 38 | . . . 21 17 Flight 162 | . . . 38 124 Fastest Speed 40 | 50 90 120 40 40 Average Speed 143 | 82 137 169 140 43 Slowest Speed 800 | 90 200 200 800 100 Overloaded Moves . | . . . . . Propulsion Burnouts . | . . . . . Robots Hopped 4 | . . . . 4 Cave-ins Triggered . | . . . . . Exploration Rate (%) 29 | 4 38 56 16 34 Regions Visited 4 Branch Regions 1 Pre-discovered Areas . | . . . . . Known Exits Taken . | . . . . . Unknown Exits Taken 4 | 1 1 1 1 . Scrap Searched . | . . . . . Spaces Dug . | . . . . . Terrain Destroyed 86 | . 7 73 6 . Melee . | . . . . . Projectile 34 | . . 32 2 . AOE 52 | . 7 41 4 . Terrain Rammed . | . . . . . Walls Destroyed . | . . . . . Machines Disabled . | . . . . . Actions | -11 -10 -9 -8 -8 --------- Run | Yrd Mat Mat Mat Sto Total 1783 | 72 238 909 387 177 Wait 48 | . . 8 29 11 Move 1419 | 56 203 765 259 136 Hop 4 | . . . . 4 Pick Up 44 | 10 5 17 12 . Fast Attach 14 | . . 4 8 2 Attach 38 | 6 3 12 17 . Detach 10 | . 1 6 3 . Swap 14 | . 2 7 5 . Drop 29 | . 2 9 13 5 Fire 128 | . 21 79 28 . Melee 6 | . . 2 4 . Ram 13 | . 1 . 9 3 Kick . | . . . . . Crush . | . . . . . Escape Stasis 16 | . . . . 16 Rewire . | . . . . . Trap . | . . . . . Miscellaneous . | . . . . . Route ------- -11/Scrapyard -10/Materials -9/Materials -8/Materials -8/Storage History --------- Turn | Location | Event 32 | -11/Scrapyard | Discovered new exit (range 16) 64 | -11/Scrapyard | Entered Materials 302 | -10/Materials | Build established: Mutant 319 | -10/Materials | Discovered new exit (range 6) 419 | -10/Materials | Entered another Materials area 419 | -9/Materials | Evolved 2 slots: Propulsion x2 650 | -9/Materials | Destroyed 8 combat bots 1436 | -9/Materials | Core integrity fell below 50% 1619 | -9/Materials | First assault squad dispatched 1987 | -9/Materials | Discovered new exit (range 4) 2016 | -9/Materials | Entered another Materials area 2016 | -8/Materials | Evolved 2 slots: Utility x2 2058 | -8/Materials | Discovered new exit (range 6) 2416 | -8/Materials | Lost 5 parts (1p3n1w) 2490 | -8/Materials | Core integrity fell below 50% 2524 | -8/Materials | Lost 12 parts (2p3n4u3w) 2543 | -8/Materials | Core integrity fell below 20% 2544 | -8/Materials | Entered Storage 2622 | -8/Storage | Met 01-MTF 2641 | -8/Storage | Destroyed by Y-45 Defender with Beam Rifle Last Messages --------------- here any more than I do, great." 02625_ 01-MTF: "There's plenty of loot to go around, and to be honest I'm just looking for something specific, but have no idea if it's even around here..." 02628_ 01-MTF: "Tell you what, I'll take care of any doors we come across, and you can take anything you want. It's probably not here anyway, but may as well explore a bit." 02629_ Acquired Imp. Light Armor Plating. 02632_ Dropped Actuator Array. 02632_ Dropped Scythe. 02633_ Dropped Lrg. Storage Unit. 02633_ R-06 Scavenger collects Actuator Array. 02636_ Flight Unit destroyed. 02637_ R-06 Scavenger collects Lrg. Storage Unit. 02639_ Slammed into R-06 Scavenger. 02639_ Imp. Light Armor Plating severed. 02640_ Slammed into G-47 Trooper. Map ----- +----------------------------------------------------+ | | | | | | | | | ???????????????????????????????????? | | ???????????????????????????????????? | | ???????????????????????????????????? | | ???????????????????????????????????? | | ???????????????????????????????????? | | ???????????????????????????????????? | | ???????????????????????????????????? | | ???????????????????????????????????? | | ???????????????????????????????????? | | ???????????????????????????????????? | | ???????????????????????????????????? | | ????????????????????????????????? ? | | ???????????????????????????????##/## | | ??????????""""?????????????????# | | ?????????## #??????????????#### | | ?????????#T #??????????????# | | ??????????# ##########?????# | | ??????????# # #?????# # | | ??######??# + #?????# # | | ??#!/! #### # #?????# # | | ??#!!! #T##g # """""" #?????# # | | ??# " /@ # "????" #???? / # | | ??#! pl !#gg# "????" #?? # # | | ??# " # # """""" # # # | | ??#!! !# #gY# + # # | | ??######### / # # # | | ??????????# #####+####+#####+## # | | ??????????# #???# #??# # # + | | ??????????# #???# #??# # # # | | ??????????# #???# #??# # # # | | ??????????# #???# #??# # /# # | | ?????????# #### #### # [ # # | | ?????????# # # # | | ?????????# T / ##### | | ?????????# ######## ## #???? | | ?????????#####???????# ## #???? | | ?????????????????????# ## #???? | | ?????????????????????# ## #???? | | ?????????????????????# ## #???? | | ?????????????????????#+## #???? | | ????????????????????????########???? | | ???????????????????????????????????? | | ???????????????????????????????????? | | ???????????????????????????????????? | | ???????????????????????????????????? | | ???????????????????????????????????? | +----------------------------------------------------+ Best States ------------- Heat Dissipation 41 Energy Generation 12 Energy Capacity 265 Matter Stores 300 Matter Capacity 300 Sight Range 16 Terrain Scan Density 10 Armor Coverage 450 Utility Shielding 66 Evasion (%) 62 Recoil Reduction 4 Item Schematics ----------------- Arm. Treads | -8/Materials | Scanalyzed Robot Schematics ------------------ None Fabricated ------------ Nothing Alien Tech Used ----------------- None Achievements -------------- Universal Adapter Challenges ------------ None Game ------ Seed DimensionalLinearLegs Manual? 0 Play Time 00:41:35 Cumulative 9.5 hours Start 2024.04.19 @ 14:37:03 End 2024.04.19 @ 15:22:57 Sessions 1 Manual Loads 0 Difficulty Rogue Special Mode None Game No. 10 Rogue 10 Adventurer 0 Explorer 0 Win Type - Total 0 Types 0/0/0/0/0/0/0/0/0 Lore% 6 Gallery% 12 Achievement% 12 Wizard Run 0 Options --------- Layout 1 ASCII 0 Keyboard 0 Movement Mouse Keybinds 0 Fullscreen 2 Font 32/SmallcapsGlow Map View 50x35 Zoom Use 0% Tactical HUD 1 Map Filters NONE Filters NONE Steam 1 RUN: e916729b-70f1-4c17-af2f-dbb7e3c2daa9